[Event "Turkish Women-ch Arzum 2022"]
[Site "Ayvalik"]
[Date "2022.03.06"]
[Round "2.6"]
[White "Gokbulut, Yulia"]
[Black "Salt, Ilayda"]
[Result "1-0"]
[ECO "D34"]
[WhiteElo "1902"]
[BlackElo "1594"]
[Annotator "NA"]
[PlyCount "75"]
[EventDate "2022.03.04"]
[EventType "swiss"]
[EventCountry "TUR"]
[SourceTitle "playchess.com"]
[Source "ChessBase"]
[SourceQuality "1"]
[TimeControl "5400+30"]

1. d4 d5 2. c4 e6 3. Nf3 Nf6 4. g3 Be7 5. Bg2 O-O 6. O-O c5 7. cxd5 exd5 {[%emt 0:14:00]} 8. b3 {[%emt 0:06:30]} Nc6 {[%emt 0:02:30]} 9. Bb2 {[%emt 0:00:30]} Be6 {[%emt 0:06:30]} 10. Nc3 {[%emt 0:03:30]} h6 {[%emt 0:05:30]} 11. Rc1 {[%emt 0:00:30]} Rc8 {[%emt 0:04:30]} 12. e3 {[%emt 0:05:30]} a6 {[%emt 0:05:30]} ({Black should play} 12... c4 $14) 13. dxc5 {[%emt 0:01:30]} Qa5 {[%emt 0:06:30]} (13... Bxc5 $16 14. Nxd5 Qxd5) 14. Na4 {[%emt 0:04:30]} Ne4 {[%emt 0:04:30]} 15. a3 {[%emt 0:03:30]} Qc7 {[%emt 0:36:33]} 16. Nd4 {[%emt 0:05:30]} Nxd4 {[%emt 0:02:06]} 17. Bxd4 $18 {[%emt 0:01:30]} ({Don't play} 17. Qxd4 $6 Bf6 18. Qb4 a5 $16) 17... Qc6 {[%emt 0:04:21]} 18. Nb6 {[%emt 0:01:30]} Rcd8 {[%emt 0:00:51]} 19. b4 {[%emt 0:00:30]} Bf5 {[%emt 0:01:19]} 20. f3 {[%emt 0:02:30]} Ng5 {[%emt 0:01:21]} 21. g4 {[%emt 0:02:30]} Bg6 {[%emt 0:01:02]} 22. f4 {[%emt 0:01:30]} Ne4 {[%emt 0:00:29]} 23. f5 {[%emt 0:00:30]} Bh7 {[%emt 0:00:39]} 24. Qa4 {[%emt 0:01:30]} Qc7 {[%emt 0:01:30]} 25. Nxd5 {[%emt 0:03:30]} Rxd5 {[%emt 0:00:05]} 26. Bxe4 {[%emt 0:00:00]} Rxd4 {[%emt 0:00:54]} 27. exd4 {[%emt 0:00:00]} Bg5 {[%emt 0:00:00]} 28. Rcd1 {[%emt 0:02:30]} Rd8 {[%emt 0:00:22]} 29. Qb3 {[%emt 0:01:30]} h5 {[%emt 0:00:19]} 30. Qg3 {[%emt 0:03:30]} Qe7 {[%emt 0:01:01]} 31. Qg2 {[%emt 0:04:30]} Rd7 {[%emt 0:01:32]} 32. Rfe1 {[%emt 0:00:30]} hxg4 {[%emt 0:01:36]} 33. Kh1 {[%emt 0:05:30]} Qf6 {[%emt 0:00:30]} 34. Bxb7 {[%emt 0:04:30]} Bxf5 {[%emt 0:00:16]} 35. Re8+ {[%emt 0:04:30]} Kh7 {[%emt 0:00:01]} 36. Bc8 {[%emt 0:00:30]} Rd8 {[%emt 0:01:58]} 37. Rxd8 {[%emt 0:00:30]} Bc2 {[%emt 0:00:00]} 38. Qxc2+ {[%emt 0:00:30]} 1-0

[Event "Turkish Women-ch Arzum 2022"]
[Site "Ayvalik"]
[Date "2022.03.06"]
[Round "2.7"]
[White "Yilmaz, Gokcen"]
[Black "Demirtas, Hafize"]
[Result "1-0"]
[ECO "B13"]
[WhiteElo "1647"]
[BlackElo "1779"]
[Annotator "NA"]
[PlyCount "177"]
[EventDate "2022.03.04"]
[EventType "swiss"]
[EventCountry "TUR"]
[SourceTitle "playchess.com"]
[Source "ChessBase"]
[SourceQuality "1"]
[TimeControl "5400+30"]

1. e4 {[%emt 0:01:00]} c6 {[%emt 0:04:00]} 2. d4 {[%emt 0:00:00]} d5 {[%emt 0:00:30]} 3. exd5 {[%emt 0:00:00]} cxd5 {[%emt 0:00:30]} 4. c4 {[%emt 0:00:30]} Nf6 {[%emt 0:00:30]} 5. Nc3 {[%emt 0:00:30]} Nc6 {[%emt 0:00:00]} 6. Bg5 {[%emt 0:00:00]} dxc4 {[%emt 0:00:00]} 7. Bxc4 {[%emt 0:00:00]} Qxd4 {[%emt 0:00:00]} 8. Qxd4 {[%emt 0:00:00]} Nxd4 {[%emt 0:00:00]} 9. O-O-O {[%emt 0:00:00]} e5 {[%emt 0:00:30]} 10. f4 {[%emt 0:00:30]} Bg4 {[%emt 0:00:30]} 11. Nf3 $1 {[%emt 0:00:00]} Bxf3 $11 {[%emt 0:00:00]} 12. gxf3 O-O-O {[%emt 0:05:30]} 13. fxe5 {[%emt 0:00:00]} Nxf3 {[%emt 0:00:00]} 14. Rxd8+ {[%emt 0:39:30]} Kxd8 {[%emt 0:00:00]} 15. Rd1+ {[%emt 0:00:30]} Kc8 {[%emt 0:00:00]} 16. exf6 {[%emt 0:05:30]} Nxg5 {[%emt 0:00:00]} 17. h4 {[%emt 0:00:30]} Nf3 {[%emt 0:05:30]} 18. Bxf7 {[%emt 0:01:30]} gxf6 {[%emt 0:00:00]} 19. Be6+ {[%emt 0:00:30]} Kc7 {[%emt 0:01:00]} 20. Rd7+ {[%emt 0:02:30]} Kc6 {[%emt 0:01:30]} 21. Rf7 {[%emt 0:01:30]} Bh6+ {[%emt 0:06:30]} 22. Kb1 {[%emt 0:00:30]} Nxh4 {[%emt 0:05:30]} 23. Bd5+ {[%emt 0:03:30]} Kc5 {[%emt 0:02:30]} 24. Bxb7 {[%emt 0:01:30]} f5 {[%emt 0:04:30]} 25. Rc7+ {[%emt 0:02:30]} Kd4 {[%emt 0:04:30]} 26. Nb5+ {[%emt 0:03:30]} Ke3 {[%emt 0:00:30]} 27. Nxa7 {[%emt 0:00:30]} f4 {[%emt 0:01:30]} 28. Rc3+ {[%emt 0:04:30]} Kf2 {[%emt 0:00:30]} 29. Rc6 {[%emt 0:09:30]} Bg5 {[%emt 0:01:30]} 30. Nb5 {[%emt 0:04:30]} Rd8 {[%emt 0:11:30]} 31. Rc2+ {[%emt 0:00:30]} Kg3 {[%emt 0:01:30]} 32. Nc3 {[%emt 0:00:30]} f3 {[%emt 0:09:30]} 33. Ne4+ {[%emt 0:01:30]} Kf4 {[%emt 0:00:00]} 34. Nf2 {[%emt 0:00:30]} h6 {[%emt 0:01:00]} 35. a4 {[%emt 0:03:28]} Bf6 {[%emt 0:09:30]} 36. Rc4+ {[%emt 0:05:23]} Rd4 {[%emt 0:00:30]} 37. Rc6 {[%emt 0:00:53]} Be5 {[%emt 0:10:30]} 38. a5 {[%emt 0:02:32]} Kg3 {[%emt 0:04:55]} 39. Rc2 {[%emt 0:00:44]} Bb8 {[%emt 0:00:22]} 40. Ne4+ {[%emt 0:00:59]} Kf4 {[%emt 0:00:48]} 41. Rc8 {[%emt 0:01:41]} Ba7 {[%emt 0:04:23]} 42. Nf2 {[%emt 0:01:08]} Ke3 {[%emt 0:05:13]} 43. Nh3 {[%emt 0:00:31]} Rd1+ {[%emt 0:01:44]} 44. Kc2 {[%emt 0:01:37]} Rd2+ {[%emt 0:00:42]} 45. Kc1 {[%emt 0:00:14]} Rh2 {[%emt 0:00:00]} 46. Re8+ {[%emt 0:00:26]} Kd3 {[%emt 0:00:48]} 47. Nf4+ {[%emt 0:00:31]} Kc4 {[%emt 0:00:37]} 48. Re4+ {[%emt 0:03:31]} Kc5 {[%emt 0:02:16]} 49. Re5+ {[%emt 0:02:37]} Kd6 {[%emt 0:02:22]} 50. Re6+ {[%emt 0:01:30]} Kc5 {[%emt 0:02:21]} 51. Re5+ {[%emt 0:00:24]} Kb4 {[%emt 0:01:28]} 52. Nd3+ {[%emt 0:01:03]} Kc4 {[%emt 0:00:02]} 53. Ba6+ {[%emt 0:00:00]} Kd4 {[%emt 0:00:54]} 54. Re7 {[%emt 0:00:32]} Bb8 {[%emt 0:00:27]} 55. Rd7+ {[%emt 0:00:40]} Ke4 {[%emt 0:00:33]} 56. Re7+ {[%emt 0:00:23]} Kf5 {[%emt 0:00:18]} 57. Rf7+ {[%emt 0:01:10]} Kg6 {[%emt 0:01:15]} 58. Rf8 {[%emt 0:00:52]} Ba7 {[%emt 0:00:10]} 59. Ne5+ {[%emt 0:00:14]} Kh5 {[%emt 0:00:37]} 60. Nxf3 {[%emt 0:00:37]} Rh1+ {[%emt 0:01:09]} 61. Kc2 {[%emt 0:00:59]} Ng2 {[%emt 0:00:09]} 62. Kb3 {[%emt 0:00:14]} Ra1 {[%emt 0:00:54]} 63. Rf5+ {[%emt 0:00:31]} Kg4 {[%emt 0:00:24]} 64. Bc8 {[%emt 0:00:32]} Kg3 {[%emt 0:00:23]} 65. Nd2 {[%emt 0:00:16]} Nh4 {[%emt 0:00:50]} 66. Ne4+ {[%emt 0:00:39]} Kg2 {[%emt 0:00:11]} 67. Rd5 {[%emt 0:00:37]} Nf3 {[%emt 0:00:37]} 68. Kb4 {[%emt 0:00:40]} Re1 {[%emt 0:00:55]} 69. Nd6 {[%emt 0:00:30]} Bf2 {[%emt 0:00:28]} 70. Bb7 {[%emt 0:00:19]} Kg1 {[%emt 0:00:39]} 71. Rh5 {[%emt 0:00:22]} Re3 {[%emt 0:01:09]} 72. Nc4 {[%emt 0:00:21]} Be1+ {[%emt 0:00:27]} 73. Kc5 {[%emt 0:00:31]} Rb3 {[%emt 0:00:26]} 74. Bxf3 {[%emt 0:00:43]} Rxf3 {[%emt 0:00:30]} 75. b4 {[%emt 0:00:00]} Bf2+ {[%emt 0:00:24]} 76. Kb5 {[%emt 0:00:00]} Be1 {[%emt 0:00:43]} 77. Re5 {[%emt 0:00:42]} Kf2 {[%emt 0:00:38]} 78. Ka4 {[%emt 0:00:37]} Rf4 {[%emt 0:00:35]} 79. Kb5 {[%emt 0:00:45]} Rf3 {[%emt 0:00:05]} 80. Kc5 {[%emt 0:00:20]} Bc3 {[%emt 0:00:38]} 81. Rh5 {[%emt 0:00:27]} Bg7 {[%emt 0:00:49]} 82. b5 {[%emt 0:00:45]} Bf8+ {[%emt 0:00:48]} 83. Kd5 {[%emt 0:00:20]} Rd3+ {[%emt 0:00:03]} 84. Ke4 {[%emt 0:00:05]} Rd8 {[%emt 0:00:25]} 85. a6 {[%emt 0:00:33]} Re8+ {[%emt 0:00:35]} 86. Re5 {[%emt 0:00:55]} Rc8 {[%emt 0:00:13]} 87. Rf5+ {[%emt 0:00:22]} Kg3 {[%emt 0:00:09]} 88. Nb6 {[%emt 0:00:23]} Re8+ {[%emt 0:01:15]} 89. Re5 {[%emt 0:00:13]} 1-0

[Event "Turkish Women-ch Arzum 2022"]
[Site "Ayvalik"]
[Date "2022.03.06"]
[Round "2.8"]
[White "Can, Isil"]
[Black "Alev, Gonulden Seda"]
[Result "1/2-1/2"]
[ECO "B93"]
[WhiteElo "1875"]
[BlackElo "1561"]
[Annotator "NA"]
[PlyCount "48"]
[EventDate "2022.03.04"]
[EventType "swiss"]
[EventCountry "TUR"]
[SourceTitle "playchess.com"]
[Source "ChessBase"]
[SourceQuality "1"]
[TimeControl "5400+30"]

{[%evp 10,40,20,21,37,32767,32767,32767,32767,10,35,7,20,6,12,-69,-79,-56,-72,-48,-67,-58,-68,-90,-105,-98,-105,-89,-115,-81,-94,-89,-93]} 1. e4 c5 2. Nf3 d6 3. d4 cxd4 4. Nxd4 Nf6 {[%emt 0:02:30]} 5. Nc3 {[%emt 0:01:00]} a6 {[%emt 0:00:30]} 6. Be2 {[%emt 0:00:30]} g6 {[%emt 0:00:30]} 7. Be3 {[%emt 0:01:30]} Bg7 {[%emt 0:00:30]} 8. O-O {[%emt 0:00:30]} O-O {[%emt 0:00:30]} 9. a4 {[%emt 0:00:00]} Nbd7 {[%emt 0:03:00]} 10. f4 {[%emt 0:04:00]} Qc7 {[%emt 0:11:30]} 11. a5 {[%emt 0:10:00]} b6 {[%emt 0:02:30]} 12. Nb3 {[%emt 0:02:30]} (12. axb6 $11 Nxb6 13. Qd3) 12... b5 {[%emt 0:02:30]} 13. Bf3 {[%emt 0:03:30]} Bb7 {[%emt 0:00:30]} 14. Qd3 {[%emt 0:02:30]} Rac8 {[%emt 0:01:30]} 15. Rf2 {[%emt 0:03:30]} Rfd8 {[%emt 0:04:30]} 16. Bd4 {[%emt 0:11:30]} e5 {[%emt 0:26:30]} 17. fxe5 $1 {[%emt 0:08:30]} Nxe5 {[%emt 0:02:30]} 18. Bxe5 {[%emt 0:01:30]} dxe5 {[%emt 0:00:30]} 19. Qe3 {[%emt 0:01:30]} Bc6 {[%emt 0:05:30]} 20. Raf1 {[%emt 0:06:30]} b4 $17 {[%emt 0:09:30]} 21. Nd5 {[%emt 0:04:30]} Nxd5 {[%emt 0:05:30]} 22. exd5 {[%emt 0:00:30]} Bb5 {[%emt 0:00:00]} 23. Be2 {[%emt 0:00:30]} f5 {[%emt 0:05:00]} 24. Bxb5 {[%emt 0:04:30]} axb5 {[%emt 0:00:30]} 1/2-1/2

[Event "Turkish Women-ch Arzum 2022"]
[Site "Ayvalik"]
[Date "2022.03.06"]
[Round "2.9"]
[White "Gulceken, Sumeyye"]
[Black "Catal, Uktenur"]
[Result "0-1"]
[ECO "E60"]
[WhiteElo "1591"]
[BlackElo "1832"]
[Annotator "NA"]
[PlyCount "94"]
[EventDate "2022.03.04"]
[EventType "swiss"]
[EventCountry "TUR"]
[SourceTitle "playchess.com"]
[Source "ChessBase"]
[SourceQuality "1"]
[TimeControl "5400+30"]

1. d4 Nf6 2. c4 g6 3. Nf3 Bg7 4. e3 O-O 5. Nbd2 c5 6. Be2 {[%emt 0:02:30]} cxd4 7. exd4 d5 8. c5 b6 9. Nb3 Ne4 {[%emt 0:10:00]} 10. cxb6 {[%emt 0:12:30]} axb6 {[%emt 0:00:30]} 11. O-O {[%emt 0:00:30]} Nc6 {[%emt 0:00:30]} 12. Be3 {[%emt 0:03:30]} Bb7 {[%emt 0:02:30]} 13. a3 {[%emt 0:07:30]} Qd6 {[%emt 0:17:30]} 14. Rc1 {[%emt 0:07:30]} Rfc8 {[%emt 0:00:30]} 15. Bb5 {[%emt 0:06:30]} h6 {[%emt 0:04:30]} 16. Ne1 {[%emt 0:06:30]} Qf6 {[%emt 0:09:30]} 17. f3 $2 {[%emt 0:05:30]} (17. Bd3 $15) 17... Nd6 {[%emt 0:00:30]} 18. Be2 {[%emt 0:04:30]} Nf5 {[%emt 0:00:30]} 19. Bf2 {[%emt 0:00:30]} Ncxd4 {[%emt 0:05:30]} 20. Rxc8+ {[%emt 0:04:30]} Rxc8 {[%emt 0:00:30]} (20... Bxc8 $2 {loses.} 21. Nxd4 Nxd4 22. Nd3) 21. Nxd4 $19 {[%emt 0:05:30]} Nxd4 {[%emt 0:00:00]} 22. Bd3 {[%emt 0:10:30]} Nf5 {[%emt 0:03:00]} 23. b3 {[%emt 0:06:30]} e5 {[%emt 0:06:30]} 24. Nc2 {[%emt 0:03:28]} Bf8 {[%emt 0:08:30]} 25. b4 {[%emt 0:01:59]} d4 {[%emt 0:09:30]} 26. Re1 {[%emt 0:01:44]} Bg7 {[%emt 0:02:30]} 27. f4 {[%emt 0:06:23]} exf4 {[%emt 0:01:40]} 28. Bxf5 {[%emt 0:01:30]} Qxf5 {[%emt 0:00:20]} 29. Nxd4 {[%emt 0:00:27]} Bxd4 {[%emt 0:01:44]} 30. Qxd4 {[%emt 0:01:06]} Qg5 {[%emt 0:06:49]} 31. g3 {[%emt 0:01:36]} fxg3 {[%emt 0:00:37]} 32. Bxg3 {[%emt 0:02:12]} Rd8 {[%emt 0:06:48]} 33. Qe5 {[%emt 0:01:41]} Qg4 {[%emt 0:01:40]} 34. Qe7 {[%emt 0:01:44]} Qd4+ {[%emt 0:00:03]} 35. Qe3 {[%emt 0:02:07]} Qd5 {[%emt 0:00:13]} 36. Re2 {[%emt 0:00:00]} Rc8 {[%emt 0:03:56]} 37. Kf1 {[%emt 0:00:53]} Ba6 {[%emt 0:00:13]} 38. Kf2 {[%emt 0:00:04]} Bxe2 {[%emt 0:00:33]} 39. Qxe2 {[%emt 0:00:30]} Qf5+ {[%emt 0:00:00]} 40. Kg1 {[%emt 0:00:33]} Rc1+ {[%emt 0:00:37]} 41. Be1 {[%emt 0:00:17]} Qg5+ {[%emt 0:01:33]} 42. Kf2 {[%emt 0:01:05]} Rc8 {[%emt 0:00:20]} 43. Bd2 {[%emt 0:00:30]} Qf5+ {[%emt 0:00:05]} 44. Qf3 {[%emt 0:00:10]} Qxf3+ {[%emt 0:00:36]} 45. Kxf3 {[%emt 0:00:04]} Kh7 {[%emt 0:00:00]} 46. Ke4 {[%emt 0:00:55]} Rc2 {[%emt 0:00:21]} 47. Be3 {[%emt 0:00:00]} b5 {[%emt 0:00:00]} 0-1

[Event "Turkish Women-ch Arzum 2022"]
[Site "Ayvalik"]
[Date "2022.03.06"]
[Round "2.10"]
[White "Akat, Elifnaz"]
[Black "Tanir, Simay"]
[Result "0-1"]
[ECO "C54"]
[WhiteElo "1673"]
[BlackElo "1510"]
[Annotator "NA"]
[PlyCount "78"]
[EventDate "2022.03.04"]
[EventType "swiss"]
[EventCountry "TUR"]
[SourceTitle "playchess.com"]
[Source "ChessBase"]
[SourceQuality "1"]
[TimeControl "5400+30"]

1. e4 e5 2. Nf3 Nc6 3. Bc4 Bc5 4. c3 Nf6 5. d3 a6 6. O-O d6 7. h3 O-O 8. d4 {[%emt 0:11:30]} Ba7 {[%emt 0:11:30]} 9. Bg5 {[%emt 0:05:30]} h6 {[%emt 0:04:30]} 10. Bh4 {[%emt 0:10:30]} g5 {[%emt 0:10:30]} 11. Bg3 {[%emt 0:18:30]} Nxe4 {[%emt 0:05:30]} 12. Bh2 {[%emt 0:04:30]} g4 {[%emt 0:08:30]} 13. hxg4 {[%emt 0:07:30]} Bxg4 {[%emt 0:00:30]} 14. Be2 {[%emt 0:02:30]} exd4 {[%emt 0:09:30]} 15. Nxd4 {[%emt 0:03:30]} Bxe2 {[%emt 0:04:30]} 16. Qxe2 {[%emt 0:05:30]} Re8 {[%emt 0:03:30]} 17. Qd3 {[%emt 0:06:30]} Nxd4 {[%emt 0:03:30]} 18. cxd4 {[%emt 0:00:30]} Qf6 {[%emt 0:01:30]} 19. Nc3 {[%emt 0:03:43]} Qxd4 {[%emt 0:03:30]} 20. Qxd4 {[%emt 0:00:46]} Bxd4 {[%emt 0:00:30]} 21. Nxe4 {[%emt 0:00:30]} Rxe4 {[%emt 0:00:30]} 22. Rac1 {[%emt 0:00:01]} Rc8 {[%emt 0:00:30]} 23. Bxd6 {[%emt 0:00:30]} Bxb2 {[%emt 0:03:30]} 24. Rxc7 {[%emt 0:02:10]} Rxc7 {[%emt 0:00:30]} 25. Bxc7 {[%emt 0:00:02]} Ra4 {[%emt 0:01:30]} 26. Rd1 {[%emt 0:01:33]} Rxa2 {[%emt 0:01:30]} 27. Rd8+ {[%emt 0:02:15]} Kg7 {[%emt 0:01:30]} 28. Bf4 {[%emt 0:04:04]} b5 {[%emt 0:07:51]} 29. Rd2 {[%emt 0:06:21]} Ra1+ {[%emt 0:02:55]} 30. Kh2 {[%emt 0:00:01]} Bc3 {[%emt 0:01:25]} 31. Rd6 {[%emt 0:00:51]} f6 {[%emt 0:00:39]} 32. Rd7+ {[%emt 0:00:47]} Kg6 {[%emt 0:00:25]} 33. Be3 {[%emt 0:01:04]} h5 {[%emt 0:07:30]} 34. Rd8 {[%emt 0:01:10]} b4 {[%emt 0:00:26]} 35. Rc8 {[%emt 0:02:23]} b3 {[%emt 0:01:41]} 36. Rxc3 {[%emt 0:00:50]} b2 {[%emt 0:00:30]} 37. Bd4 {[%emt 0:00:00]} b1=Q {[%emt 0:00:37]} 38. Rg3+ {[%emt 0:00:00]} Kf7 {[%emt 0:00:19]} 39. Bxa1 {[%emt 0:00:19]} Qxa1 {[%emt 0:00:00]} 0-1

[Event "Turkish Women-ch Arzum 2022"]
[Site "Ayvalik"]
[Date "2022.03.06"]
[Round "2.11"]
[White "Keskinler, Ela"]
[Black "Gur, Tuba"]
[Result "0-1"]
[ECO "B22"]
[WhiteElo "1400"]
[BlackElo "1750"]
[Annotator "NA"]
[PlyCount "76"]
[EventDate "2022.03.04"]
[EventType "swiss"]
[EventCountry "TUR"]
[SourceTitle "playchess.com"]
[Source "ChessBase"]
[SourceQuality "1"]
[TimeControl "5400+30"]

1. e4 c5 2. c3 d5 3. exd5 Qxd5 4. d4 Nf6 5. Nf3 Bg4 6. Be2 e6 7. O-O Be7 8. Be3 {[%emt 0:07:30]} Nbd7 {[%emt 0:14:30]} 9. h3 {[%emt 0:05:30]} Bh5 {[%emt 0:00:30]} 10. c4 {[%emt 0:03:30]} Qd6 {[%emt 0:14:30]} 11. Nc3 {[%emt 0:01:30]} a6 {[%emt 0:04:30]} 12. Qb3 {[%emt 0:15:30]} Bxf3 {[%emt 0:05:30]} 13. dxc5 {[%emt 0:00:30]} Nxc5 {[%emt 0:02:30]} 14. Bxc5 {[%emt 0:00:30]} Qxc5 {[%emt 0:00:30]} 15. Bxf3 {[%emt 0:00:30]} Rb8 {[%emt 0:04:30]} 16. Qa4+ {[%emt 0:01:30]} Kf8 {[%emt 0:02:30]} 17. Rac1 {[%emt 0:01:30]} h5 {[%emt 0:05:30]} 18. Rfd1 {[%emt 0:16:30]} g5 {[%emt 0:07:30]} 19. Qb3 {[%emt 0:18:30]} g4 {[%emt 0:20:15]} 20. Na4 {[%emt 0:03:30]} Qe5 {[%emt 0:00:42]} 21. Re1 {[%emt 0:01:30]} Qf4 {[%emt 0:00:50]} 22. Be2 {[%emt 0:00:30]} Ne4 {[%emt 0:05:06]} 23. Qe3 {[%emt 0:05:25]} Qxe3 {[%emt 0:01:07]} 24. fxe3 {[%emt 0:00:12]} Bh4 {[%emt 0:00:24]} 25. Rf1 {[%emt 0:00:45]} Bg5 {[%emt 0:00:46]} 26. Rc2 {[%emt 0:10:16]} Bxe3+ {[%emt 0:00:15]} 27. Kh2 {[%emt 0:00:22]} g3+ {[%emt 0:01:09]} 28. Kh1 {[%emt 0:00:40]} Nf2+ {[%emt 0:00:05]} 29. Kg1 {[%emt 0:00:17]} Nxh3+ {[%emt 0:00:22]} 30. Kh1 {[%emt 0:00:09]} Nf2+ {[%emt 0:02:36]} 31. Kg1 {[%emt 0:00:41]} h4 {[%emt 0:00:06]} 32. Bf3 {[%emt 0:00:12]} h3 {[%emt 0:01:28]} 33. gxh3 {[%emt 0:00:32]} Nxh3+ {[%emt 0:03:50]} 34. Kg2 {[%emt 0:03:29]} Nf4+ {[%emt 0:00:06]} 35. Kxg3 {[%emt 0:00:20]} Rh3+ {[%emt 0:00:17]} 36. Kg4 {[%emt 0:00:06]} f5+ {[%emt 0:00:12]} 37. Kg5 {[%emt 0:00:14]} Ke7 {[%emt 0:00:10]} 38. Rc3 {[%emt 0:01:50]} Rg8# {[%emt 0:00:30]} 0-1

[Event "Turkish Women-ch Arzum 2022"]
[Site "Ayvalik"]
[Date "2022.03.06"]
[Round "2.12"]
[White "Kalayci, Nino"]
[Black "Akar, Nilay"]
[Result "1-0"]
[ECO "D20"]
[WhiteElo "1775"]
[BlackElo "1516"]
[Annotator "NA"]
[PlyCount "71"]
[EventDate "2022.03.04"]
[EventType "swiss"]
[EventCountry "TUR"]
[SourceTitle "playchess.com"]
[Source "ChessBase"]
[SourceQuality "1"]
[TimeControl "5400+30"]

1. d4 d5 2. c4 dxc4 3. e3 e5 {[%emt 0:06:00]} 4. Bxc4 {[%emt 0:30:30]} exd4 {[%emt 0:00:30]} 5. exd4 {[%emt 0:01:30]} Nf6 {[%emt 0:02:30]} 6. Nf3 {[%emt 0:03:30]} Be7 {[%emt 0:01:30]} 7. O-O {[%emt 0:06:30]} O-O {[%emt 0:01:30]} 8. h3 {[%emt 0:01:30]} Nbd7 {[%emt 0:00:30]} 9. Nc3 {[%emt 0:04:30]} Nb6 {[%emt 0:02:30]} 10. Bb3 {[%emt 0:00:30]} Nfd5 {[%emt 0:06:30]} 11. Re1 {[%emt 0:03:30]} Bf6 {[%emt 0:05:30]} 12. Ne4 {[%emt 0:05:30]} h6 {[%emt 0:06:30]} 13. a3 {[%emt 0:03:30]} c6 {[%emt 0:04:30]} 14. Bc2 {[%emt 0:03:30]} Bf5 15. Ng3 {[%emt 0:09:30]} Bxc2 {[%emt 0:09:00]} 16. Qxc2 {[%emt 0:00:00]} Re8 {[%emt 0:02:30]} 17. Bd2 {[%emt 0:02:00]} Qc7 {[%emt 0:09:30]} 18. Nf5 {[%emt 0:04:07]} Nf4 {[%emt 0:04:30]} 19. Ne5 {[%emt 0:09:27]} Nbd5 {[%emt 0:06:30]} 20. Ng4 {[%emt 0:03:31]} Bg5 {[%emt 0:13:27]} 21. h4 {[%emt 0:03:40]} Bf6 {[%emt 0:07:49]} 22. Nxf6+ {[%emt 0:00:20]} Nxf6 {[%emt 0:00:53]} 23. g3 {[%emt 0:01:43]} Ne2+ {[%emt 0:00:31]} 24. Kf1 {[%emt 0:00:38]} Qd7 {[%emt 0:00:44]} 25. Rxe2 {[%emt 0:00:46]} Qd5 {[%emt 0:03:12]} 26. Rxe8+ {[%emt 0:02:06]} Rxe8 {[%emt 0:00:30]} 27. Kg1 {[%emt 0:00:00]} Ng4 {[%emt 0:00:59]} 28. Re1 {[%emt 0:00:43]} Rxe1+ {[%emt 0:01:24]} 29. Bxe1 {[%emt 0:00:30]} Qe6 {[%emt 0:00:30]} 30. Ne3 {[%emt 0:00:30]} Nf6 {[%emt 0:00:30]} 31. Bb4 {[%emt 0:00:30]} Ne4 {[%emt 0:00:30]} 32. Kg2 {[%emt 0:00:30]} g5 {[%emt 0:00:30]} 33. hxg5 {[%emt 0:00:30]} hxg5 {[%emt 0:01:09]} 34. Qc4 {[%emt 0:01:10]} Qf6 {[%emt 0:00:58]} 35. f3 {[%emt 0:00:14]} g4 {[%emt 0:00:22]} 36. Nxg4 {[%emt 0:00:22]} 1-0

[Event "Turkish Women-ch Arzum 2022"]
[Site "Ayvalik"]
[Date "2022.03.06"]
[Round "2.13"]
[White "Baloglu, Dila"]
[Black "Zengin, Ovgu"]
[Result "1-0"]
[ECO "B42"]
[WhiteElo "1630"]
[BlackElo "1475"]
[Annotator "NA"]
[PlyCount "73"]
[EventDate "2022.03.04"]
[EventType "swiss"]
[EventCountry "TUR"]
[SourceTitle "playchess.com"]
[Source "ChessBase"]
[SourceQuality "1"]
[TimeControl "5400+30"]

1. e4 c5 2. Nf3 e6 3. d4 cxd4 4. Nxd4 a6 {[%emt 0:01:30]} 5. Bd3 {[%emt 0:02:00]} Bc5 {[%emt 0:01:30]} 6. Nb3 {[%emt 0:00:30]} Ba7 {[%emt 0:01:30]} 7. Qg4 {[%emt 0:05:30]} Nf6 {[%emt 0:00:30]} 8. Qg3 {[%emt 0:09:30]} d6 {[%emt 0:05:30]} 9. Nc3 {[%emt 0:08:30]} Nc6 {[%emt 0:07:30]} 10. a3 {[%emt 0:10:30]} Ne5 {[%emt 0:05:30]} 11. Be2 {[%emt 0:03:30]} O-O {[%emt 0:08:30]} 12. Bg5 {[%emt 0:05:30]} Kh8 {[%emt 0:22:30]} 13. O-O-O {[%emt 0:10:30]} h6 {[%emt 0:15:30]} 14. h4 {[%emt 0:06:30]} Qe7 {[%emt 0:06:30]} 15. f4 {[%emt 0:03:30]} Nc6 {[%emt 0:02:45]} 16. e5 {[%emt 0:01:30]} dxe5 {[%emt 0:01:46]} 17. fxe5 {[%emt 0:00:30]} Qc7 {[%emt 0:00:22]} 18. Bxf6 {[%emt 0:09:30]} gxf6 {[%emt 0:01:18]} 19. Qf4 {[%emt 0:00:30]} Qxe5 {[%emt 0:04:35]} 20. Qxh6+ {[%emt 0:00:00]} Kg8 {[%emt 0:00:20]} 21. Rh3 {[%emt 0:02:00]} Bb8 {[%emt 0:02:42]} 22. Rf1 {[%emt 0:02:00]} f5 {[%emt 0:01:14]} 23. g4 {[%emt 0:03:42]} fxg4 {[%emt 0:02:31]} 24. Bxg4 {[%emt 0:02:27]} Qg7 {[%emt 0:00:46]} 25. Qe3 {[%emt 0:01:19]} Kh8 {[%emt 0:02:34]} 26. Be2 {[%emt 0:02:53]} Ba7 {[%emt 0:02:01]} 27. Qf3 {[%emt 0:01:20]} Qh6+ {[%emt 0:01:26]} 28. Kb1 {[%emt 0:00:15]} e5 {[%emt 0:00:12]} 29. Rg3 {[%emt 0:00:48]} Be6 {[%emt 0:00:30]} 30. Rg5 {[%emt 0:00:00]} Bxb3 {[%emt 0:01:07]} 31. Rh5 {[%emt 0:01:00]} Bxc2+ {[%emt 0:00:31]} 32. Ka1 {[%emt 0:00:08]} Qxh5 {[%emt 0:00:29]} 33. Qxh5+ {[%emt 0:00:30]} Bh7 {[%emt 0:00:00]} 34. Bd3 {[%emt 0:00:00]} f5 {[%emt 0:00:48]} 35. Rxf5 {[%emt 0:00:20]} e4 {[%emt 0:01:17]} 36. Rxf8+ {[%emt 0:00:51]} Rxf8 {[%emt 0:00:30]} 37. Bxe4 {[%emt 0:00:00]} 1-0

[Event "Turkish Women-ch Arzum 2022"]
[Site "Ayvalik"]
[Date "2022.03.06"]
[Round "2.14"]
[White "Aydogan, Arya"]
[Black "Bese, Irem"]
[Result "1-0"]
[ECO "C11"]
[WhiteElo "1328"]
[BlackElo "1714"]
[Annotator "NA"]
[PlyCount "51"]
[EventDate "2022.03.04"]
[EventType "swiss"]
[EventCountry "TUR"]
[SourceTitle "playchess.com"]
[Source "ChessBase"]
[SourceQuality "1"]
[TimeControl "5400+30"]

1. e4 e6 2. d4 d5 {[%emt 0:00:30]} 3. Nc3 {[%emt 0:03:00]} Nf6 {[%emt 0:00:30]} 4. e5 {[%emt 0:00:30]} Nfd7 {[%emt 0:00:00]} 5. f4 {[%emt 0:00:30]} c5 {[%emt 0:01:00]} 6. Nf3 {[%emt 0:00:30]} Nc6 {[%emt 0:00:30]} 7. Be3 {[%emt 0:00:30]} a6 {[%emt 0:00:30]} 8. Qd2 {[%emt 0:01:30]} b5 {[%emt 0:01:30]} 9. dxc5 {[%emt 0:00:30]} Nxc5 {[%emt 0:01:30]} 10. Qf2 {[%emt 0:02:30]} Nd7 {[%emt 0:03:30]} 11. Nd4 {[%emt 0:19:30]} Bb7 {[%emt 0:07:30]} 12. Nxc6 {[%emt 0:08:30]} Bxc6 {[%emt 0:00:30]} 13. Bd3 {[%emt 0:00:30]} Be7 {[%emt 0:03:30]} 14. O-O {[%emt 0:03:30]} f6 {[%emt 0:02:30]} 15. Qg3 {[%emt 0:08:30]} Bf8 {[%emt 0:12:30]} 16. Bxh7 {[%emt 0:04:30]} Nc5 {[%emt 0:12:30]} 17. Bg6+ {[%emt 0:11:30]} Kd7 {[%emt 0:00:00]} 18. f5 {[%emt 0:01:30]} Kc8 {[%emt 0:06:00]} 19. fxe6 {[%emt 0:06:30]} d4 {[%emt 0:07:30]} 20. Bf5 {[%emt 0:05:30]} Kb7 {[%emt 0:03:30]} 21. Rad1 {[%emt 0:00:30]} fxe5 {[%emt 0:02:30]} 22. Qxe5 {[%emt 0:04:52]} Bd6 {[%emt 0:02:30]} 23. Qxd4 {[%emt 0:02:51]} Rxh2 {[%emt 0:02:30]} 24. Bh3 {[%emt 0:03:46]} Rxh3 {[%emt 0:05:30]} 25. gxh3 {[%emt 0:01:20]} Qe8 {[%emt 0:01:30]} 26. Rf7+ {[%emt 0:01:04]} 1-0